Cogmind - Beta 14 @@@ ROGUE MODE // 2024.11.18 @ 23:06:39 Player: Fangrelle Result: Self-destructed Performance ------------- Evolutions (2) 1000 Regions Visited (4) 800 Robots Destroyed (24) 120 Value Destroyed (827) 827 Prototype IDs (12) 240 Alien Tech Used (0) 0 Bonus (-31) -31 TOTAL SCORE: 2956 Bonus ------- Friendly Fire -31 Cogmind --------- Core Integrity 540/550 Matter 135/300 Energy 150/150 System Corruption 0% Temperature Cool (0) Movement Walking (260) Ox2 Location -8/Materials Parts ------- > --- POWER (1) -------- Light Angular Momentum Engine > --- PROPULSION (2) --- Carbon-fiber Leg Myomer Leg > --- UTILITY (6) ------ Disposable Heat Sink High-capacity Storage Unit Medium Armor Plating Medium Armor Plating Scrap Shield > --- WEAPON (2) ------- Slug Cannon Bore Cannon > --- INVENTORY (20) --- Neutrino Core Armored Treads Arachnoskeleton High-capacity Matter Pod (200) High-capacity Matter Pod (200) Compact Matter Pod (150) V3-11A's Pendant Autogun Autogun Autogun Autogun Barrage Gun Improved Light Cannon Rocket Launcher Peak State ------------ > --- POWER ------------ Light Angular Momentum Engine > --- PROPULSION ------- Carbon-fiber Leg Myomer Leg > --- UTILITY ---------- Disposable Heat Sink High-capacity Storage Unit Medium Armor Plating Medium Armor Plating Scrap Shield > --- WEAPON ----------- Slug Cannon Bore Cannon > --- INVENTORY -------- Neutrino Core Armored Treads Arachnoskeleton High-capacity Matter Pod High-capacity Matter Pod Compact Matter Pod V3-11A's Pendant Autogun Autogun Autogun Autogun Barrage Gun Improved Light Cannon Rocket Launcher [Rating: 40] Favorites ----------- Power Neutrino Core Engine Ion Engine Power Core Neutrino Core Propulsion Light Treads Treads Light Treads Leg Myomer Leg Utility Medium Armor Plating Device Disposable Heat Sink Storage High-capacity Storage Unit Protection Medium Armor Plating Weapon Autogun Ballistic Gun Autogun Ballistic Cannon Slug Cannon Build | -11 -10 -10 -10 -8 ------- Run | Yrd Mat Min Sub Mat Slots Evolved 4 | . . . . 4 Power . | . . . . . Propulsion . | . . . . . Utility 4 | . . . . 4 Weapon . | . . . . . Parts Attached 30 | . 6 3 15 6 Power 4 | . . 2 1 1 Engine 2 | . . 1 . 1 Core 2 | . . 1 1 . Reactor . | . . . . . Propulsion 4 | . 2 . 2 . Treads 2 | . 2 . . . Leg 2 | . . . 2 . Wheel . | . . . . . Hover . | . . . . . Flight . | . . . . . Utility 13 | . 2 1 5 5 Device 2 | . . . . 2 Storage 2 | . . 1 1 . Processor . | . . . . . Hackware . | . . . . . Protection 9 | . 2 . 4 3 Artifact . | . . . . . Weapon 9 | . 2 . 7 . Energy Gun . | . . . . . Energy Cannon . | . . . . . Ballistic Gun 4 | . 2 . 2 . Ballistic Cannon 5 | . . . 5 . Launcher . | . . . . . Special Weapon . | . . . . . Impact Weapon . | . . . . . Slashing Weapon . | . . . . . Piercing Weapon . | . . . . . Special Melee Weapon . | . . . . . Unidentified Prototypes 1 | . . . . 1 Parts Lost 5 | . . . 4 1 Power 1 | . . . 1 . Propulsion 1 | . . . 1 . Utility 3 | . . . 2 1 Weapon . | . . . . . Highest Loss Streak 3 | . . . 3 1 To Critical Strikes . | . . . . . Average Slot Usage (%) 91 | . 95 100 87 86 Engine 3 | . 14 8 . 9 Core 9 | . . 5 13 . Treads 12 | . 21 28 6 . Leg 15 | . 6 . 21 18 Storage 5 | . 3 6 5 9 Protection 15 | . 20 21 11 24 Ballistic Gun 17 | . 28 28 13 . Ballistic Cannon 10 | . . . 14 18 Peak Build Rating 40 | . 12 14 33 40 Average Rating 23 | . 9 12 27 38 On Entrance 13 | 6 6 12 11 33 Naked Turns . | . . . . . Heaviest Build 98 | 12 23 28 77 98 Greatest Support 40 | 20 40 40 40 40 Greatest Overweight (x) 2 | . . . 1 2 Average Overweight (x) . | . . . . 1 Largest Inventory Capacity 20 | . 8 10 20 20 Average Capacity 10 | . 5 7 10 20 Most Carried 20 | . 6 10 20 20 Average Carried 9 | . 5 6 9 16 Final Capacity 20 | 8 5 10 20 20 Final Carried 19 | 6 5 10 19 16 Class Distribution -------------------- 65% | Mutant 34% | Scavenger-Mutant Dominant Class ---------------- Mutant | -10/Materials Mutant | -10/Mines Mutant | -10/Subcaves Scavenger-Mutant | -8/Materials Resources | -11 -10 -10 -10 -8 ----------- Run | Yrd Mat Min Sub Mat Matter Collected 1262 | 197 31 286 632 116 Remotely . | . . . . . Salvage Created 925 | . 31 429 310 155 Parts 52 | . 3 28 12 9 Haulers Intercepted . | . . . . . Recyclers Shooed . | . . . . . Parts Field Recycled . | . . . . . Retrieved Matter . | . . . . . Parts Self-Destructed 11 | . . . 11 . Prevented . | . . . . . Kills | -11 -10 -10 -10 -8 ------- Run | Yrd Mat Min Sub Mat Combat Hostiles Destroyed 17 | . 1 6 6 4 Guns 11 | . 1 6 4 . Cannons 6 | . . . 2 4 Classes Destroyed 9 | . 1 4 3 1 Worker 1 | . . 1 . . Builder 1 | . . 1 . . Tunneler 2 | . . 2 . . Recycler 1 | . . 1 . . Turret 2 | . . . 2 . Grunt 9 | . 1 6 . 2 Hunter 2 | . . . . 2 Cobbler 1 | . . . 1 . Subdweller 6 | . . . 6 . Best Kill Streak 3 | . 1 3 2 2 Combat Bots Only 2 | . 1 2 2 2 Max Kills in Single Turn 2 | . 1 2 1 1 Gunslinging . | . . . . . Exploded . | . . . . . Melee . | . . . . . Uniques/NPCs Destroyed . | . . . . . Combat | -11 -10 -10 -10 -8 -------- Run | Yrd Mat Min Sub Mat Hostile Shots Fired 200 | . 3 21 152 24 Missed 66 | . 1 4 55 6 Damage Taken 2067 | . 21 233 1592 221 Core 249 | . . 49 190 10 Absorbed by Shields . | . . . . . Core Remaining (%) 52 | 100 . . 4 . Volleys Fired 99 | . 2 24 59 14 Largest 2 | . 2 2 2 2 Hottest 105 | . 46 46 105 105 Shots Fired 185 | . 4 48 105 28 Gun 135 | . 4 48 83 . Cannon 50 | . . . 22 28 Launcher . | . . . . . Special . | . . . . . Kinetic 185 | . 4 48 105 28 Thermal . | . . . . . Explosive . | . . . . . Electromagnetic . | . . . . . Robot Hit Streak 21 | . 4 8 21 3 Robot Miss Streak 6 | . . 3 3 6 Penetration Max . | . . . . . Secondary Targets 2 | . . 1 1 . Max Gunslinging Chain 1 | . . 1 1 . Shots Hit Robots 116 | . 4 31 73 8 Core Hits 39 | . 1 15 18 5 Critical Kills 5 | . . . 1 4 Critical Parts Destroyed 3 | . . 1 . 2 Critical Strikes 11 | . . 1 4 6 Destroy 11 | . . 1 4 6 Melee Attacks . | . . . . . Impact . | . . . . . Slashing . | . . . . . Piercing . | . . . . . Sneak Attacks . | . . . . . Combat Hostiles . | . . . . . Follow-up Attacks . | . . . . . Damage Inflicted 1994 | . 51 524 1259 160 Guns 1472 | . 51 496 925 . Cannons 494 | . . . 334 160 Explosions . | . . . . . Melee . | . . . . . Ramming 28 | . . 28 . . Kinetic 1966 | . 51 496 1259 160 Thermal . | . . . . . Explosive . | . . . . . Electromagnetic . | . . . . . Impact . | . . . . . Slashing . | . . . . . Piercing . | . . . . . Highest Corruption . | . . . . . Average Corruption . | . . . . . Corruption Purged . | . . . . . Corruption Blocked . | . . . . . Overload Shots . | . . . . . Overflow Damage 15 | . . . . 15 Projectiles 15 | . . . . 15 Explosions . | . . . . . Melee . | . . . . . Knockbacks 3 | . . . 3 . Impact . | . . . . . Kinetic 3 | . . . 3 . Secondary . | . . . . . Self-Inflicted Damage . | . . . . . Shots . | . . . . . Rammed 4 | . . 4 . . Targets Rammed 6 | . . 6 . . Kicked . | . . . . . Crushed 2 | . . 2 . . Highest Temperature 199 | . 48 118 54 199 Average Temperature 58 | . 27 39 21 103 Received Heat Transfer 576 | . 12 132 432 . Siege Activations . | . . . . . Robots Corrupted . | . . . . . Combat Hostiles . | . . . . . Parts Fried . | . . . . . Impact Corruptions . | . . . . . Robots Melted . | . . . . . Combat Hostiles . | . . . . . Parts Melted 1 | . . . 1 . Heat Transferred . | . . . . . Parts Sabotaged . | . . . . . Parts Stolen . | . . . . . Parts Stripped . | . . . . . Power Chain Reactions . | . . . . . Alert | -11 -10 -10 -10 -8 ------- Run | Yrd Mat Min Sub Mat Peak Influence 252 | . 45 72 . 252 Initial 79 | . . 17 . 79 Average 52 | . 17 32 . 165 Maximum Alert Level 1 | . . . . 1 Low Security (%) 96 | . 100 100 . 77 Level 1 3 | . . . . 22 Level 2 . | . . . . . Level 3 . | . . . . . Level 4 . | . . . . . Level 5 . | . . . . . High Security . | . . . . . Max Security . | . . . . . Squads Dispatched 2 | . 1 . . 1 Investigation 1 | . 1 . . . Extermination . | . . . . . Reinforcement 1 | . . . . 1 Assault . | . . . . . Garrison . | . . . . . Intercept . | . . . . . Searches Triggered . | . . . . . Construction Impeded . | . . . . . Haulers Reinforced . | . . . . . Active Scanning Responses . | . . . . . Cargo Convoy Interrupts . | . . . . . Stealth | -11 -10 -10 -10 -8 --------- Run | Yrd Mat Min Sub Mat Distress Signals . | . . . . . Communications Jammed . | . . . . . Distress Signals . | . . . . . Times Spotted 37 | . 1 5 27 4 Peak Tracking Total 7 | . 1 2 7 1 Tactical Retreats 3 | . . . 3 . Traps | -11 -10 -10 -10 -8 ------- Run | Yrd Mat Min Sub Mat Traps Triggered 2 | . 1 . 1 . Indirectly . | . . . . . Trap Hack Attempts . | . . . . . Triggered . | . . . . . Disarmed . | . . . . . Reprogrammed . | . . . . . Reused . | . . . . . Traps Extracted . | . . . . . Installed . | . . . . . Triggered . | . . . . . Machines | -11 -10 -10 -10 -8 ---------- Run | Yrd Mat Min Sub Mat Machines Disabled 5 | . . . 3 2 Max in Single Turn 2 | . . . 1 2 Machines Repaired . | . . . . . Machines Dismantled . | . . . . . Machines Sabotaged . | . . . . . Overloaded Fab Kills . | . . . . . Hacking | -11 -10 -10 -10 -8 --------- Run | Yrd Mat Min Sub Mat Machines Accessed 3 | . . . 2 1 Terminals 1 | . . . . 1 Fabricators . | . . . . . Repair Stations . | . . . . . Recycling Units . | . . . . . Scanalyzers . | . . . . . Garrison Access . | . . . . . Total Hacks 6 | . . . 5 1 Successful 5 | . . . 5 . Failed 1 | . . . . 1 Catastrophic . | . . . . . Database Lockouts . | . . . . . Manual 1 | . . . . 1 Terminals 1 | . . . . 1 Fabricators . | . . . . . Repair Stations . | . . . . . Recycling Units . | . . . . . Scanalyzers . | . . . . . Garrison Access . | . . . . . Terminal Hacks 5 | . . . 5 . Record 4 | . . . 4 . Derelict Proto ID Bank 1 | . . . 1 . Fabricator Hacks . | . . . . . Repair Station Hacks . | . . . . . Recycling Unit Hacks . | . . . . . Scanalyzer . | . . . . . Garrison Access Hacks . | . . . . . Unauthorized Hacks . | . . . . . Terminals . | . . . . . Fabricators . | . . . . . Repair Stations . | . . . . . Recycling Units . | . . . . . Scanalyzers . | . . . . . Garrison Access . | . . . . . Data Cores Recovered . | . . . . . Used . | . . . . . Hacking Detections 1 | . . . . 1 Full Trace Events . | . . . . . Feedback Events . | . . . . . Feedback Blocked . | . . . . . Robot Schematics Acquired . | . . . . . Robots Built . | . . . . . Authchips . | . . . . . Time . | . . . . . Total Robot Build Rating . | . . . . . Part Schematics Acquired . | . . . . . Parts Built . | . . . . . Authchips . | . . . . . Time . | . . . . . Total Part Build Rating . | . . . . . Parts Repaired . | . . . . . Time . | . . . . . Parts Recycled . | . . . . . Recycled Matter . | . . . . . Retrieved Matter . | . . . . . Retrieved Components . | . . . . . Parts Scanalyzed . | . . . . . Part Schematics Acquired . | . . . . . Parts Damaged . | . . . . . Bothacking | -11 -10 -10 -10 -8 ------------ Run | Yrd Mat Min Sub Mat Used RIF Installer . | . . . . . Robots Hacked . | . . . . . Non-combat . | . . . . . Combat . | . . . . . Robot Hacks Applied . | . . . . . Relay Couplers Released . | . . . . . Fabnet Peak Effective % . | . . . . . Robots Rewired . | . . . . . Allies Hacked . | . . . . . Hacks Repelled . | . . . . . Allies | -11 -10 -10 -10 -8 -------- Run | Yrd Mat Min Sub Mat Total Allies . | . . . . . Largest Group . | . . . . . Highest-Rated Group . | . . . . . Highest-Rated Ally . | . . . . . Total Orders . | . . . . . Ally Attacks . | . . . . . Total Damage . | . . . . . Kills . | . . . . . Allies Corrupted . | . . . . . Allies Melted . | . . . . . Intel | -11 -10 -10 -10 -8 ------- Run | Yrd Mat Min Sub Mat Robot Analysis Total . | . . . . . Derelict Logs Recovered 2 | . . 1 1 . Drone Launches . | . . . . . Drone Recoveries . | . . . . . Exploration | -11 -10 -10 -10 -8 ------------- Run | Yrd Mat Min Sub Mat Turns Passed 5647 | . 250 1474 3583 340 Spaces Moved 2892 | 1 149 844 1782 116 Core . | . . . . . Treads 1016 | . 103 844 69 . Legs 1876 | 1 46 . 1713 116 Wheels . | . . . . . Hover . | . . . . . Flight . | . . . . . Fastest Speed 120 | 120 120 160 120 190 Average Speed 180 | 120 147 160 188 248 Slowest Speed 260 | 120 160 160 190 260 Overloaded Moves . | . . . . . Propulsion Burnouts . | . . . . . Robots Hopped . | . . . . . Cave-ins Triggered . | . . . . . Exploration Rate (%) 34 | 2 17 97 47 11 Regions Visited 4 Branch Regions 2 Pre-discovered Areas 3 | . . 2 1 . Known Exits Taken . | . . . . . Unknown Exits Taken 4 | 1 1 1 1 . Scrap Searched 2 | . . 1 1 . Spaces Dug . | . . . . . Terrain Destroyed 13 | . . . 5 8 Melee . | . . . . . Projectile 13 | . . . 5 8 AOE . | . . . . . Terrain Rammed . | . . . . . Walls Destroyed . | . . . . . Machines Disabled . | . . . . . Actions | -11 -10 -10 -10 -8 --------- Run | Yrd Mat Min Sub Mat Total 3168 | . 178 928 1922 140 Wait 59 | . 6 36 17 . Move 2888 | . 148 843 1781 116 Hop . | . . . . . Pick Up 42 | . 6 9 25 2 Fast Attach 14 | . 4 2 8 . Attach 8 | . . . 2 6 Detach 2 | . . . . 2 Swap 8 | . 2 1 5 . Drop 35 | . 10 7 18 . Fire 99 | . 2 24 59 14 Melee . | . . . . . Ram . | . . . . . Kick . | . . . . . Crush 6 | . . 6 . . Escape Stasis . | . . . . . Rewire . | . . . . . Trap . | . . . . . Miscellaneous 7 | . . . 7 . Route ------- -11/Scrapyard -10/Materials -10/Mines (discovered 3 exits: [*Mat x2] / *Sub) -10/Subcaves (discovered 3 exits: *Mat x2 / [*Rec]) -8/Materials History --------- Turn | Location | Event 1 | -11/Scrapyard | Discovered new exit (range 0) 1 | -11/Scrapyard | Entered Materials 152 | -10/Materials | Discovered new exit (range 5) 251 | -10/Materials | Entered Mines 252 | -10/Mines | Learned location of Storage (-8) 281 | -10/Mines | Met a Derelict bent on vengeance 303 | -10/Mines | Build established: Mutant 641 | -10/Mines | Discovered new exit (range 6) 836 | -10/Mines | Received a Rocket Launcher from a helpful Derelict 932 | -10/Mines | Learned location of Zion (-6) 1072 | -10/Mines | Discovered new exit (range 5) 1717 | -10/Mines | Discovered new exit (range 5) 1725 | -10/Mines | Entered Subcaves 1860 | -10/Subcaves | Discovered new exit (range 7) 1863 | -10/Subcaves | Ambushed by swarm of Subdwellers 1904 | -10/Subcaves | Core integrity fell below 50% 1932 | -10/Subcaves | Lost 3 parts (1p1n1u) 2056 | -10/Subcaves | Visited 4L-MR0's lab 2080 | -10/Subcaves | Found Arachnoskeleton 2199 | -10/Subcaves | Build established: Scavenger-Mutant 2273 | -10/Subcaves | Learned Materials emergency access door positions 2825 | -10/Subcaves | Build established: Mutant 2974 | -10/Subcaves | Discovered new exit (range 9) 3001 | -10/Subcaves | Visited triangular shrine 3013 | -10/Subcaves | Found Prototype Device 3292 | -10/Subcaves | Shifting Twisted Machinery released Flamer 3415 | -10/Subcaves | Build established: Scavenger-Mutant 3664 | -10/Subcaves | Visited Clippyterm 3669 | -10/Subcaves | Learned location of Section 7 (-2) 3669 | -10/Subcaves | Learned 40 Factory zone layouts 4208 | -10/Subcaves | Build established: Mutant 4932 | -10/Subcaves | Core integrity fell below 20% 4957 | -10/Subcaves | Discovered new exit (range 16) 5308 | -10/Subcaves | Entered Materials 5308 | -8/Materials | Evolved 4 slots: Utility x4 5310 | -8/Materials | Identified V3-11A's Pendant 5410 | -8/Materials | Build established: Scavenger-Mutant 5648 | -8/Materials | Self-destructed Last Messages --------------- 05488_ Acquired 5 matter. 05496_ K-01 Serf collects debris. 05509_ Acquired 33 matter. 05510_ K-01 Serf collects debris. 05511_ R-06 Scavenger collects Aluminum Leg. 05513_ K-01 Serf collects debris. 05516_ R-06 Scavenger collects Imp. Heat Sink. 05517_ K-01 Serf collects debris. 05559_ Connecting with Repair Station... 05574_ HV Slug penetrates H-55 Commando. 05574_ HV Slug penetrates Wall. 05577_ HV Slug penetrates H-55 Commando. 05577_ H-55 Commando suffers critical hit (Destroy). 05577_ H-55 Commando destroyed. 05579_ R-06 Scavenger collects Targeting Computer. 05583_ R-06 Scavenger collects Lgt. Nuclear Core. 05586_ U-05 Engineer builds a Wall. 05587_ R-06 Scavenger collects Gauss Rifle. 05592_ U-05 Engineer builds a Wall. 05634_ Slug penetrates Wall. Map ----- +----------------------------------------------------+ | ???? !!! ???????????# #??????????????????????? | | ??????!! ########### ########???????????????? | | ???????? # #???????????????? | | ????????? ^ ^ # #???????????????? | | ???????????? % # """ #???????????????? | | ?????????????# """ + "R #???????????????? | | ?????????????#% """ # """ #???????????????? | | ?????????????#! "" # #???????????????? | | ?????????????# " #####+##???????????????? | | ?????????????# ^ #???# #????????????????? | | ?????????????# #???# #????????????????? | | ?????????????# % #???# #????????????????? | | ??????????"" # ^ " #???# #????????????????? | | ??????????"" #% " #???# #????????????????? | | ??????????? # " %#???# #????????????????? | | ??? ####/##### % #####+##???????????????? | | ?? " # #???????????????? | | ?? # #???????????????? | | ?? # #???????????????? | | ???????#+########+### + #???????????????? | | ?????????????# # # #???????????????? | | ?????????????# # # #???????????????? | | ?????????????# # ########???????????????? | | ?????????????# "" # #??????????????????? | | ?????????????# S"" + #??????????????????? | | ?????????????# "" # @ #??????????????????? | | ?????????????###########+#####?????????????????? | | ???????????????????# !#?????????????????? | | ???????????????????# """"" #?????????????????? | | ???????????????????# ""T"" #?????????????????? | | ???????????????????# #?????????????????? | | ???????????????????# """ """ #?????????????????? | | ???????????????????# """ """ #?????????????????? | | ???????????????????# """ """ #?????????????????? | | ???????????????????# #?????????????????? | | ???????????????????###########?????????????????? | | ???????????????????????????????????????????????? | | | | | | | | | | | | | | | | | | | | | | | | | | | +----------------------------------------------------+ Best States ------------- Heat Dissipation 31 Coolant Potential 50 Energy Generation 19 Energy Capacity 315 Matter Stores 300 Matter Capacity 300 Sight Range 16 Terrain Scan Density 10 Armor Coverage 1250 Evasion (%) 55 Recoil Reduction 2 Item Schematics ----------------- None Robot Schematics ------------------ None Fabricated ------------ Nothing Alien Tech Used ----------------- None Achievements -------------- None Challenges ------------ None Game ------ Seed PhysicsCombatExtractor Manual? 0 Play Time 00:29:58 Cumulative 114.3 hours Start 2024.11.18 @ 21:06:59 End 2024.11.18 @ 23:06:39 Sessions 5 Manual Loads 0 Difficulty Rogue Special Mode None Game No. 211 Rogue 211 Adventurer 0 Explorer 0 Win Type - Total 0 Types 0/0/0/0/0/0/0/0/0 Lore% 42 Gallery% 40 Achievement% 35 Wizard Run 0 Options --------- Layout 0 ASCII 0 Keyboard 0 Movement Mouse Keybinds 0 Fullscreen 1 Font 24/Smallcaps Map View 91x25 Zoom Use 77% Tactical HUD 1 Map Filters NONE Filters NONE Steam 1 RUN: 6e0c9f41-3c42-4a4f-a396-672df43a407f